bitfinex-derivatives/quotes_SOLF0:USTF0_20250820
["timestamp","ask_amount","ask_price","bid_price","bid_amount"]
[1755664653241,3.03,181.07,181.03,0.04245859]
[1755664653440,139.24,181.08,181.03,0.04245859]
[1755664653736,3.03,181.17,181.05,2.89]
[1755664653942,152.5756148,181.16,181.05,2.89]
[1755664654134,149.98,181.16,181.05,2.89]
[1755664654444,2.59545336,181.15,181.05,2.89]
[1755664654643,149.98,181.16,181.05,2.89]
[1755664654933,0.04126338,181.12,181.09,0.03625015]
[1755664655134,0.04126338,181.12,181.09,2.92625015]
[1755664655833,3.07126338,181.12,181.09,0.03625015]
[1755664656041,3.03,181.11,181.09,0.03625015]
[1755664657045,3.03,181.1,181.09,0.03625015]
[1755664660735,3.07126338,181.12,181.09,0.03625015]
[1755664661844,0.04126338,181.12,181.09,0.03625015]
[1755664662144,3.03,181.1,181.09,0.03625015]
[1755664663851,3.03,181.09,180.95,2.89]
[1755664664048,3.03,181.07,180.95,2.89]
[1755664664249,3.03,181.05,180.95,2.89]
[1755664664448,3.03,181.03,180.95,2.89]
[1755664665053,0.03671147,181.01,180.95,2.89]
[1755664665246,152.07,181.0,180.88,2.89]
[1755664665946,0.03565858,180.96,180.88,2.89]
[1755664666147,0.03565858,180.96,180.89,2.89]
[1755664668749,0.03565858,180.96,180.84,2.89]
[1755664669144,3.03,180.98,180.84,2.89]
[1755664669547,3.03,180.98,180.84,6.68326652]
[1755664669751,3.03,180.98,180.85,2.89]
[1755664670350,2.51705949,180.97,180.85,2.89]
[1755664670553,3.03,180.96,180.85,2.89]
[1755664676963,3.03,180.96,180.82,2.89]
[1755664677158,371.34,180.95,180.82,2.89]
[1755664677366,3.03,180.94,180.82,2.89]
[1755664680767,147.62,180.93,180.82,2.89]
[1755664681167,2.87,180.92,180.82,2.89]
[1755664683964,147.62,180.93,180.82,6.68326652]
[1755664684165,150.49,180.93,180.83,2.96]
[1755664684971,2.87,180.92,180.83,2.96]
[1755664685174,2.87,180.92,180.79,2.96]
[1755664685966,2.51069372,180.91,180.79,2.96]
[1755664686163,2.87,180.9,180.72,3.92246923]
[1755664686371,2.87,180.9,180.72,0.96246923]
[1755664686572,2.51014727,180.89,180.73,2.96]
[1755664686876,2.87,180.88,180.73,2.96]
[1755664689572,147.54,180.87,180.73,2.96]
[1755664689773,2.87,180.86,180.73,2.96]
[1755664690971,147.44,180.85,180.73,2.96]
[1755664691773,147.44,180.85,180.74,3.79326652]
[1755664692079,147.44,180.85,180.75,2.96]
[1755664692278,147.44,180.85,180.78,2.44646649]
[1755664692475,147.44,180.85,180.79,2.96]
[1755664694374,2.44646649,180.92,180.79,2.96]
[1755664694576,147.18,180.87,180.79,2.96]
[1755664697371,2.87,180.86,180.77,2.44646649]
[1755664697577,2.87,180.86,180.76,2.96]
[1755664698580,2.87,180.84,180.72,2.96]
[1755664699170,2.87,180.81,180.7,2.96]
[1755664700977,2.87,180.81,180.62,6.76998873]
[1755664701173,2.87,180.81,180.63,3.92297526]
[1755664701382,2.87,180.81,180.64,2.96]
[1755664702280,2.55708214,180.8,180.64,2.96]
[1755664702587,2.87,180.78,180.64,2.96]
[1755664702881,146.68,180.77,180.64,2.96]
[1755664703283,2.87,180.76,180.64,2.96]
[1755664709386,0.03820098,180.72,180.64,2.96]
[1755664709583,2.96,180.71,180.68,0.03763876]
[1755664709783,0.03820098,180.72,180.68,0.03763876]
[1755664709784,2.96,180.69,180.68,0.03763876]
[1755664713890,2.96,180.71,180.68,0.03763876]
[1755664714389,145.7,180.71,180.68,0.03763876]
[1755664714589,2.96,180.7,180.68,0.03763876]
[1755664714984,145.7,180.71,180.68,2.91763876]
[1755664715588,145.7,180.71,180.69,2.88]
[1755664715986,0.03820098,180.72,180.69,2.88]
[1755664716791,0.03820098,180.72,180.68,0.03763876]
[1755664717190,0.03820098,180.72,180.71,2.88]
[1755664718300,0.03820098,180.72,180.71,3.44]
[1755664718494,145.48,180.8,180.71,3.44]
[1755664718795,145.48,180.8,180.71,2.88]
[1755664718997,145.48,180.8,180.71,6.68998873]
[1755664719199,145.48,180.8,180.71,3.80998873]
[1755664719394,145.48,180.8,180.72,2.88]
[1755664719796,145.48,180.8,180.74,2.92152771]
[1755664720695,145.48,180.8,180.74,0.04152771]
[1755664720899,2.96,180.77,180.74,0.04152771]
[1755664721197,2.96,180.76,180.74,0.04152771]
[1755664721398,145.48,180.8,180.74,0.04152771]
[1755664721607,2.96,180.75,180.74,0.04152771]
[1755664722799,2.96,180.78,180.74,0.04152771]
[1755664722994,2.96,180.77,180.74,0.04152771]
[1755664723993,2.96,180.76,180.74,0.04152771]
[1755664724596,2.96,180.79,180.74,0.04152771]
[1755664724793,2.96,180.77,180.74,0.04152771]
[1755664725001,2.96,180.79,180.74,0.04152771]
[1755664725201,2.96,180.77,180.74,0.04152771]
[1755664725395,145.48,180.8,180.74,0.04152771]
[1755664727399,144.84,180.79,180.74,0.04152771]
[1755664727608,2.96,180.78,180.74,0.04152771]
[1755664727902,2.96,180.78,180.74,2.92152771]
[1755664729100,144.56,180.77,180.74,0.04152771]
[1755664729306,2.96,180.76,180.74,0.04152771]
[1755664729693,2.96,180.75,180.74,0.04152771]
[1755664730502,5.57954924,180.75,180.74,0.04152771]
[1755664730704,2.96,180.75,180.74,0.04152771]
[1755664734196,5.58019743,180.75,180.74,0.04152771]
[1755664734506,5.58019743,180.75,180.64,2.88]
[1755664734706,2.62019743,180.74,180.64,2.88]
[1755664735607,2.96,180.75,180.66,2.88]
[1755664737713,2.6215829,180.74,180.66,2.88]
[1755664737913,2.96,180.73,180.66,2.88]
[1755664738111,2.62235615,180.72,180.66,2.88]
[1755664738307,144.14,180.71,180.63,3.05]
[1755664740510,144.14,180.71,180.65,3.05]
[1755664740812,143.98,180.72,180.65,3.05]
[1755664742113,143.98,180.72,180.65,4.59068094]
[1755664742414,143.98,180.72,180.66,3.05]
[1755664742814,2.6274643,180.71,180.66,3.05]
[1755664743014,2.94,180.7,180.63,4.59068094]
[1755664743316,2.94,180.7,180.64,3.05]
[1755664747313,2.94,180.7,180.62,7.03851073]
[1755664747518,2.94,180.7,180.62,2.44782979]
[1755664748121,2.62851768,180.69,180.62,2.44782979]
[1755664748321,2.94,180.7,180.62,2.44782979]
[1755664749023,2.62817978,180.69,180.61,3.05]
[1755664749227,2.94,180.68,180.61,3.05]
[1755664758327,143.98,180.72,180.61,3.05]
[1755664758534,5.56001042,180.71,180.65,3.05]
[1755664758724,143.98,180.72,180.65,3.05]
[1755664759525,371.94,180.74,180.68,3.05]
[1755664759826,142.58,180.76,180.71,3.05]
[1755664760028,2.94,180.79,180.73,2.44782979]
[1755664760230,2.94,180.79,180.73,5.49782979]
[1755664760531,142.58,180.81,180.69,3.05]
[1755664760532,2.94,180.77,180.69,3.05]
[1755664760737,2.61850954,180.76,180.69,3.05]
[1755664760931,2.94,180.77,180.69,3.05]
[1755664761333,2.94,180.77,180.7,2.44782979]
[1755664761533,2.94,180.8,180.71,3.05]
[1755664761732,2.61855789,180.79,180.71,3.05]
[1755664761934,2.94,180.78,180.71,3.05]
[1755664763533,2.61864174,180.77,180.7,2.44782979]
[1755664763837,2.94,180.76,180.7,2.44782979]
[1755664764538,2.94,180.76,180.7,5.49782979]
[1755664771643,2.94,180.76,180.7,2.44782979]
[1755664772740,2.94,180.76,180.66,4.59068094]
[1755664772941,2.62015464,180.75,180.65,2.89]
[1755664773141,5.66015464,180.74,180.65,2.89]
[1755664773342,3.04,180.74,180.65,7.48068094]
[1755664773543,3.04,180.74,180.66,4.59068094]
[1755664773847,3.04,180.74,180.65,7.48068094]
[1755664777143,3.04,180.74,180.65,4.59068094]
[1755664777344,3.04,180.74,180.66,2.89]
[1755664779247,3.04,180.72,180.64,4.59068094]
[1755664779441,3.04,180.72,180.64,2.89]
[1755664779954,3.04,180.76,180.66,2.89]
[1755664780251,145.42,180.76,180.67,2.89]
[1755664781042,145.42,180.76,180.67,5.33782979]
[1755664781242,145.42,180.76,180.68,2.89]
[1755664781553,142.38,180.76,180.68,2.89]
[1755664781952,142.38,180.76,180.7,2.44782979]
[1755664782152,142.38,180.76,180.72,2.89]
[1755664782356,3.04,180.75,180.68,2.89]
[1755664784957,142.38,180.76,180.68,2.89]
[1755664787960,142.38,180.76,180.73,2.89]
[1755664788158,145.42,180.76,180.73,2.89]
[1755664789862,142.38,180.76,180.7,2.44782979]
[1755664790161,3.04,180.73,180.7,2.44782979]
[1755664790652,3.04,180.73,180.7,5.33782979]
[1755664791158,145.4580117,180.76,180.7,5.33782979]
[1755664800871,142.4180117,180.76,180.7,5.33782979]
[1755664801074,142.4180117,180.76,180.7,2.44782979]
[1755664801266,2.9780117,180.76,180.73,2.44782979]
[1755664801569,2.9780117,180.76,180.72,2.9]
[1755664801768,2.94,180.75,180.72,2.9]
[1755664802469,0.0380117,180.76,180.72,2.9]
[1755664802681,0.0380117,180.76,180.71,2.9]
[1755664803174,0.0380117,180.76,180.7,8.57577053]
[1755664803373,0.0380117,180.76,180.71,2.9]
[1755664803671,2.94,180.75,180.68,5.34782979]
[1755664803873,2.94,180.75,180.68,2.9]
[1755664804070,2.61641868,180.74,180.68,2.9]
[1755664804274,2.94,180.72,180.64,2.9]
[1755664804473,140.98,180.71,180.64,2.9]
[1755664804775,2.94,180.7,180.64,2.9]
[1755664805170,0.03645936,180.69,180.61,11.47577053]
[1755664806073,2.94,180.68,180.61,9.02794074]
[1755664806578,2.94,180.68,180.61,2.9]
[1755664806874,0.03645936,180.69,180.61,2.9]
[1755664808075,0.03645936,180.69,180.61,8.4368]
[1755664808273,0.03645936,180.69,180.64,2.9]
[1755664808473,0.03645936,180.69,180.66,2.44782979]
[1755664808665,0.03645936,180.69,180.67,2.9]
[1755664808872,0.03645936,180.69,180.68,2.9]
[1755664810673,0.03645936,180.69,180.66,2.44782979]
[1755664810880,2.97645936,180.69,180.64,2.9]
[1755664811482,0.03645936,180.69,180.64,2.9]
[1755664811676,2.94,180.68,180.64,2.9]
[1755664812075,2.94,180.67,180.63,2.44782979]
[1755664812281,2.94,180.67,180.61,6.12794074]
[1755664812477,2.94,180.67,180.6,9.02794074]
[1755664812777,2.94,180.67,180.6,2.9]
[1755664813176,0.03526992,180.65,180.6,2.9]
[1755664813378,2.94,180.63,180.58,2.44782979]
[1755664813575,2.94,180.63,180.59,2.9]
[1755664815479,2.94,180.63,180.6,2.9]
[1755664816086,2.94,180.64,180.6,2.9]
[1755664816777,2.94,180.63,180.58,5.34782979]
[1755664816980,2.94,180.63,180.59,2.9]
[1755664817777,2.94,180.62,180.58,2.44782979]
[1755664818177,0.03526992,180.65,180.58,2.44782979]
[1755664818379,2.94,180.64,180.58,2.44782979]
[1755664818882,2.94,180.64,180.56,2.9]
[1755664819074,2.94,180.64,180.56,5.34782979]
[1755664820686,2.94,180.64,180.55,2.44782979]
[1755664821484,0.03934991,180.61,180.55,2.44782979]
[1755664821788,2.97934991,180.61,180.55,2.44782979]
[1755664822174,2.97934991,180.61,180.54,2.9]
[1755664822582,0.03934991,180.61,180.54,2.9]
[1755664822880,0.03934991,180.61,180.57,2.9]
[1755664823079,0.03934991,180.61,180.56,5.5384]
[1755664823387,0.03934991,180.61,180.6,2.9]
[1755664824180,0.03934991,180.61,180.58,2.44782979]
[1755664824578,2.94,180.68,180.6,2.9]
[1755664824788,2.94,180.68,180.61,2.44782979]
[1755664825587,143.46,180.71,180.63,2.44782979]
[1755664825785,143.46,180.71,180.63,2.48273776]
[1755664825989,2.94,180.71,180.63,2.48273776]
[1755664826489,2.94,180.71,180.63,0.03490797]
[1755664833192,2.94,180.71,180.63,3.00490797]
[1755664836490,143.36,180.71,180.63,3.00490797]
[1755664837586,3.13,180.7,180.63,3.00490797]
[1755664837790,3.13,180.7,180.63,0.03490797]
[1755664839892,19.74,180.7,180.63,0.03490797]
[1755664840207,3.13,180.68,180.63,0.03490797]
[1755664841005,2.61523585,180.67,180.63,0.03490797]
[1755664841206,3.13,180.66,180.63,0.03490797]
[1755664841510,3.13,180.64,180.63,0.03490797]
[1755664841708,143.35,180.64,180.63,0.03490797]
[1755664842311,143.35,180.64,180.56,2.97]
[1755664842312,3.13,180.63,180.56,2.97]
[1755664843011,140.22,180.64,180.56,8.5085]
[1755664843203,140.22,180.64,180.56,5.5385]
[1755664843404,140.22,180.64,180.57,2.97]
[1755664843605,3.16539242,180.62,180.58,2.97]
[1755664843808,3.13,180.61,180.55,2.97]
[1755664845505,0.03539242,180.62,180.55,2.97]
[1755664847512,3.16539242,180.62,180.55,2.97]
[1755664848510,3.13,180.57,180.45,6.12794074]
[1755664848715,3.13,180.55,180.44,2.97]
[1755664848917,2.60827779,180.54,180.44,2.97]
[1755664849117,3.13,180.55,180.44,2.97]
[1755664849410,0.036796,180.51,180.44,2.97]
[1755664850204,3.13,180.5,180.41,2.97]
[1755664850412,3.13,180.5,180.43,2.97]
[1755664850611,3.13,180.55,180.43,2.97]
[1755664850807,3.13,180.53,180.43,5.41782979]
[1755664851010,3.13,180.53,180.44,2.97]
[1755664852509,3.13,180.53,180.41,2.97]
[1755664853107,140.16,180.52,180.41,2.97]
[1755664853910,3.13,180.51,180.41,2.97]
[1755664854112,3.13,180.51,180.41,5.41782979]
[1755664854415,140.16,180.5,180.41,5.41782979]
[1755664855318,3.13,180.49,180.41,2.97]
[1755664856816,140.16,180.5,180.41,2.97]
[1755664857016,140.16,180.5,180.43,2.97]
[1755664859014,3.13,180.52,180.43,2.97]
[1755664859220,140.18,180.51,180.43,2.97]
[1755664859818,3.04,180.5,180.43,2.97]
[1755664860619,3.04,180.54,180.43,8.5124]
[1755664860917,3.04,180.62,180.52,3.08]
[1755664861124,143.24,180.62,180.52,3.08]
[1755664861320,3.04,180.61,180.52,3.08]
[1755664862323,3.04,180.61,180.51,2.44782979]
[1755664862512,3.04,180.61,180.52,3.08]
[1755664863217,3.04,180.6,180.48,2.44782979]
[1755664863420,2.44782979,180.61,180.46,3.08]
[1755664863421,3.04,180.57,180.46,3.08]
[1755664863617,3.04,180.54,180.46,3.08]
[1755664863929,140.2,180.53,180.46,3.08]
[1755664864814,140.2,180.53,180.46,8.6213]
[1755664865116,140.2,180.53,180.46,3.08]
[1755664866322,3.04,180.55,180.46,3.08]
[1755664866509,143.24,180.55,180.46,3.08]
[1755664870017,143.24,180.55,180.46,8.6217]
[1755664870218,3.04,180.55,180.46,8.6217]
[1755664870419,140.2,180.54,180.47,5.5412]
[1755664870620,140.2,180.54,180.48,3.08]
[1755664871119,140.2,180.54,180.48,8.6211]
[1755664871325,140.2,180.54,180.48,3.08]
[1755664871622,372.26,180.58,180.48,3.08]
[1755664871825,372.26,180.58,180.52,3.08]
[1755664872722,372.26,180.58,180.51,2.44782979]
[1755664874123,372.26,180.58,180.49,3.08]
[1755664874326,372.26,180.58,180.5,2.44782979]
[1755664876527,3.04,180.57,180.49,3.08]
[1755664877125,3.04,180.57,180.47,2.44782979]
[1755664877526,3.04,180.57,180.45,3.08]
[1755664878632,3.04,180.55,180.45,3.08]
[1755664878834,140.18,180.54,180.45,3.08]
[1755664880424,140.18,180.54,180.47,2.44782979]
[1755664880630,140.18,180.54,180.48,3.08]
[1755664883435,3.04,180.53,180.44,5.52782979]
[1755664884239,3.04,180.53,180.45,3.08]
[1755664884240,140.18,180.52,180.45,3.08]
[1755664884536,140.18,180.52,180.48,3.08]
[1755664884736,140.18,180.52,180.5,3.08]
[1755664886138,3.04,180.57,180.5,3.08]
[1755664886328,140.18,180.56,180.5,5.52782979]
[1755664888037,3.04,180.55,180.48,2.44782979]
[1755664888642,3.04,180.55,180.47,3.08]
[1755664888839,3.8935409,180.54,180.47,3.08]
[1755664889143,3.04,180.55,180.47,3.08]
[1755664889332,3.89354012,180.54,180.47,3.08]
[1755664889533,3.04,180.55,180.47,3.08]
[1755664890038,3.89329407,180.54,180.47,3.08]
[1755664890237,3.04,180.55,180.47,3.08]
[1755664890438,3.89362416,180.54,180.47,3.08]
[1755664890638,3.04,180.55,180.47,3.08]
[1755664890841,140.18,180.56,180.47,3.08]
[1755664890842,3.89420569,180.54,180.47,3.08]
[1755664891140,140.16,180.54,180.51,2.89]
[1755664891443,143.28,180.54,180.49,5.33782979]
[1755664891644,140.16,180.54,180.5,2.89]
[1755664891845,140.16,180.54,180.51,2.89]
[1755664892045,140.16,180.54,180.49,2.44782979]
[1755664892245,3.12,180.53,180.46,5.33782979]
[1755664892545,3.12,180.53,180.46,10.87942979]
[1755664895045,3.12,180.53,180.46,5.33782979]
[1755664895840,3.12,180.53,180.46,10.87942979]
[1755664896749,3.12,180.53,180.46,5.33782979]
[1755664899049,0.03725404,180.51,180.46,5.33782979]
[1755664899249,0.03725404,180.51,180.47,2.89]
[1755664899746,0.03725404,180.51,180.48,2.89]
[1755664899955,0.03725404,180.51,180.49,2.89]
[1755664900143,0.03725404,180.51,180.46,7.98952979]
[1755664900344,0.03725404,180.51,180.5,2.89]
[1755664910553,0.03725404,180.51,180.47,8.4314]
[1755664910753,0.03725404,180.51,180.46,2.44782979]
[1755664910754,0.03725404,180.51,180.48,2.89]
[1755664911855,0.03725404,180.51,180.46,7.98932979]
[1755664912053,0.03725404,180.51,180.49,2.89]
[1755664913155,0.03725404,180.51,180.5,2.89]
[1755664918057,0.03725404,180.51,180.47,6.21667455]
[1755664918361,0.03725404,180.51,180.47,2.93]
[1755664918662,3.04725404,180.51,180.46,8.66450434]
[1755664918865,3.04725404,180.51,180.48,2.93]
[1755664919965,3.01,180.5,180.46,5.37782979]
[1755664920362,3.01,180.5,180.46,2.93]
[1755664920566,3.01,180.49,180.43,2.44782979]
[1755664920859,0.03725404,180.51,180.44,2.93]
[1755664921164,0.03725404,180.51,180.45,2.93]
[1755664921463,0.03725404,180.51,180.45,14.68867455]
[1755664921663,0.03725404,180.51,180.45,2.93]
[1755664922062,3.01,180.48,180.45,2.93]
[1755664922258,3.01,180.5,180.46,2.93]
[1755664922859,3.01,180.5,180.47,2.93]
[1755664925868,0.03725404,180.51,180.45,11.75847455]
[1755664926073,0.03725404,180.51,180.46,2.93]
[1755664926270,0.03725404,180.51,180.45,6.21667455]
[1755664926464,0.03725404,180.51,180.45,9.14667455]
[1755664926871,0.03725404,180.51,180.45,2.93]
[1755664929471,0.03725404,180.51,180.45,5.37782979]
[1755664933477,0.03725404,180.51,180.45,2.93]
[1755664933673,0.03725404,180.51,180.45,8.66450434]
[1755664933874,0.03725404,180.51,180.46,2.93]
[1755664934079,0.03725404,180.51,180.49,2.93]
[1755664934271,0.03725404,180.51,180.5,2.93]
[1755664934477,139.92,180.58,180.5,2.93]
[1755664934677,2.62084647,180.57,180.51,2.44782979]
[1755664934873,5.63084647,180.57,180.51,2.44782979]
[1755664935078,3.01,180.57,180.51,2.44782979]
[1755664935675,3.01,180.57,180.52,0.0364784]
[1755664935876,142.93,180.6,180.55,2.93]
[1755664936083,3.01,180.58,180.54,2.44782979]
[1755664936281,3.01,180.57,180.54,5.37782979]
[1755664936477,139.92,180.6,180.54,2.44782979]
[1755664936683,142.93,180.6,180.56,2.93]
[1755664937070,142.93,180.6,180.57,2.93]
[1755664937874,139.92,180.6,180.55,2.93]
[1755664938276,139.92,180.6,180.57,2.93]
[1755664938970,142.93,180.6,180.57,2.93]
[1755664939984,142.93,180.6,180.54,5.41485916]
[1755664940681,3.01,180.59,180.54,2.48485916]
[1755664941185,3.01,180.58,180.54,5.41485916]
[1755664942580,3.01,180.59,180.54,2.48485916]
[1755664942781,139.92,180.6,180.54,0.03702937]
[1755664943180,3.01,180.57,180.54,2.96702937]
[1755664944086,142.93,180.6,180.54,5.41485916]
[1755664944285,139.92,180.6,180.55,2.93]
[1755664944485,139.92,180.6,180.57,2.93]
[1755664945490,139.92,180.6,180.58,2.93]
[1755664946487,142.93,180.6,180.56,2.93]
[1755664946792,142.93,180.6,180.54,2.48485916]
[1755664946793,139.92,180.6,180.58,2.93]
[1755664946986,139.92,180.6,180.57,2.44782979]
[1755664947191,139.92,180.6,180.59,2.93]
[1755664947395,3.01,180.63,180.57,2.44782979]
[1755664947986,3.01,180.62,180.58,2.96829843]
[1755664948389,3.01,180.62,180.59,2.84]
[1755664949290,139.8,180.64,180.58,0.03829843]
[1755664949486,139.8,180.64,180.6,2.84]
[1755664949691,139.8,180.64,180.58,0.03829843]
[1755664949896,139.8,180.64,180.58,2.87829843]
[1755664950196,2.84,180.62,180.59,2.84]
[1755664950593,139.8,180.64,180.59,2.84]
[1755664950794,2.84,180.63,180.59,2.84]
[1755664951888,139.8,180.64,180.6,2.84]
[1755664952096,139.8,180.64,180.61,2.84]
[1755664952591,139.8,180.64,180.58,5.57629843]
[1755664952592,2.84,180.72,180.63,2.44782979]
[1755664952792,2.84,180.7,180.63,5.28782979]
[1755664953495,2.84,180.68,180.65,0.03519456]
[1755664953694,142.58,180.71,180.65,0.03519456]
[1755664953991,2.84,180.72,180.66,2.84]
[1755664955694,511.9,180.73,180.66,2.84]
[1755664955995,511.9,180.73,180.66,5.28782979]
[1755664956192,139.74,180.73,180.66,2.44782979]
[1755664956394,139.74,180.73,180.67,2.84]
[1755664961705,139.74,180.73,180.67,8.375]
[1755664962300,139.74,180.73,180.68,2.84]
[1755664962502,139.74,180.73,180.7,2.84]
[1755664963003,139.74,180.73,180.71,2.84]
[1755664963204,2.84,180.76,180.7,0.04091887]
[1755664963806,2.84,180.76,180.7,2.88091887]
[1755664965602,2.84,180.76,180.7,0.04091887]
[1755664965803,142.42,180.76,180.7,0.04091887]
[1755664966607,2.84,180.76,180.7,0.04091887]
[1755664966809,2.84,180.79,180.73,2.84]
[1755664967402,2.84,180.79,180.72,2.44782979]
[1755664967603,2.84,180.78,180.74,0.04100808]
[1755664968007,2.84,180.77,180.74,0.04100808]
[1755664968405,2.84,180.77,180.74,2.88100808]
[1755664968605,2.84,180.81,180.75,2.84]
[1755664968800,2.84,180.81,180.74,0.04100808]
[1755664971902,5.28782979,180.81,180.74,0.04100808]
[1755664972212,2.44782979,180.78,180.74,0.04100808]
[1755664972412,2.84,180.77,180.74,0.04100808]
[1755664972615,2.84,180.75,180.74,0.04100808]
[1755664975214,3.4,180.75,180.66,2.84]
[1755664975413,2.44782979,180.74,180.61,2.44782979]
[1755664975612,2.84,180.73,180.62,2.84]
[1755664976511,0.03615525,180.69,180.62,2.84]
[1755664977211,0.03615525,180.69,180.62,8.3767]
[1755664977412,0.03615525,180.69,180.62,5.5367]
[1755664977616,0.03615525,180.69,180.63,2.84]
[1755664980220,2.83,180.68,180.59,3.05]
[1755664981022,0.03674388,180.65,180.59,3.05]
[1755664981919,0.03674388,180.65,180.62,3.05]
[1755664982115,0.03674388,180.65,180.61,2.44782979]
[1755664982313,142.27,180.71,180.64,3.05]
[1755664982719,0.04230916,180.65,180.64,3.05]
[1755664983013,142.27,180.71,180.64,3.05]
[1755664983218,0.04023931,180.66,180.64,3.05]
[1755664983416,0.04023931,180.66,180.65,3.05]
[1755664986420,2.83,180.74,180.65,3.05]
[1755664986619,2.83,180.74,180.68,3.05]
[1755664987012,139.4,180.77,180.68,3.05]
[1755664987717,139.4,180.77,180.71,0.04089828]
[1755664988513,2.83,180.75,180.71,0.04089828]
[1755664988718,2.83,180.75,180.71,3.09089828]
[1755664989309,139.4,180.77,180.71,3.09089828]
[1755664989914,142.23,180.77,180.72,3.05]
[1755664990115,142.23,180.77,180.71,3.09089828]
[1755664991118,139.4,180.77,180.71,3.09089828]
[1755664991318,2.83,180.76,180.71,3.09089828]
[1755664991520,139.4,180.77,180.71,3.09089828]
[1755664991717,2.83,180.75,180.71,3.09089828]
[1755664992422,139.4,180.77,180.71,0.04089828]
[1755664992620,2.83,180.76,180.71,0.04089828]
[1755664992821,139.4,180.77,180.71,0.04089828]
[1755664993018,2.83,180.74,180.71,0.04089828]
[1755664993221,139.4,180.77,180.71,0.04089828]
[1755664994925,139.4,180.77,180.74,3.05]
[1755664995225,2.83,180.82,180.75,3.05]
[1755664995425,5.27782979,180.8,180.71,0.04089828]
[1755664995626,2.83,180.78,180.67,2.44782979]
[1755664996029,2.83,180.79,180.74,0.03736769]
[1755664996223,2.83,180.77,180.74,0.03736769]
[1755664996427,2.44782979,180.8,180.74,0.03736769]
[1755664996631,2.83,180.75,180.74,0.03736769]
[1755664997428,2.83,180.8,180.74,0.03736769]
[1755664997730,2.83,180.78,180.74,0.03736769]
[1755664997925,2.60531701,180.77,180.74,0.03736769]
[1755664998124,2.83,180.75,180.64,2.44782979]
[1755664998325,2.60622847,180.74,180.64,5.49782979]
[1755664998625,2.83,180.75,180.65,5.5358]
[1755664998821,2.83,180.75,180.66,3.05]
[1755664999025,142.11,180.75,180.66,3.05]
[1755664999426,2.83,180.75,180.66,8.5855]
[1755664999625,142.11,180.75,180.66,3.05]
[1755664999825,0.03767833,180.72,180.66,3.05]
[1755665000631,0.03767833,180.72,180.66,8.5855]
[1755665000930,0.03767833,180.72,180.66,3.05]
[1755665001827,0.03767833,180.72,180.68,5.5347]
[1755665002030,0.03767833,180.72,180.69,3.05]
[1755665002230,0.03767833,180.72,180.66,3.05]
[1755665002434,0.03767833,180.72,180.66,8.5855]
[1755665003133,0.03767833,180.72,180.66,3.05]
[1755665008336,2.86767833,180.72,180.66,3.05]
[1755665011342,0.03767833,180.72,180.66,3.05]
[1755665012338,0.03767833,180.72,180.68,5.48782979]